bitfinex-derivatives/quotes_BNBF0:USTF0_20250510
["timestamp","ask_amount","ask_price","bid_price","bid_amount"]
[1746846994265,0.30016509,666.3,664.91,0.293]
[1746846994765,0.24296629,666.29,664.91,0.293]
[1746846994965,0.3001741,666.28,664.91,0.293]
[1746846995462,0.24296629,666.27,664.91,0.293]
[1746846995660,0.30018311,666.26,664.91,0.293]
[1746846995960,0.24296629,666.25,664.91,0.293]
[1746846996164,0.30019212,666.24,664.91,0.293]
[1746846996664,0.24296629,666.23,664.91,0.293]
[1746846996866,0.54316291,666.23,664.91,0.293]
[1746846997066,0.54316291,666.23,664.92,0.30078806]
[1746846997267,0.24296629,666.22,664.92,0.30078806]
[1746846999971,0.26147425,666.21,664.92,0.30078806]
[1746847000772,0.24296629,666.2,664.92,0.30078806]
[1746847002073,0.24296629,666.19,664.92,0.30078806]
[1746847002473,0.24296629,666.18,664.92,0.30078806]
[1746847002775,0.30019662,666.23,664.92,0.30078806]
[1746847003074,0.24323236,666.22,664.92,0.30078806]
[1746847003275,0.50471741,666.22,664.92,0.30078806]
[1746847003474,0.24323236,666.21,664.92,0.30078806]
[1746847003771,0.24323236,666.2,664.92,0.30078806]
[1746847004277,0.24323236,666.21,664.92,0.30078806]
[1746847005977,0.26148604,666.2,664.92,0.30078806]
[1746847006379,0.24322218,666.19,664.92,0.30078806]
[1746847007879,0.26148604,666.2,664.92,0.30078806]
[1746847008279,0.24325261,666.19,664.92,0.30078806]
[1746847009180,0.26148604,666.18,664.92,0.30078806]
[1746847009881,0.24325261,666.17,664.92,0.30078806]
[1746847012183,0.30019662,666.23,664.92,0.30078806]
[1746847012184,0.24325261,666.22,664.92,0.30078806]
[1746847012384,0.24325261,666.22,664.93,0.42]
[1746847012578,0.24325261,666.21,664.93,0.42]
[1746847012784,0.24325261,666.2,664.93,0.42]
[1746847013181,0.50474945,666.19,664.93,0.42]
[1746847013580,0.24325261,666.18,664.93,0.42]
[1746847013780,0.24325261,666.18,664.93,0.738]
[1746847013985,1.89476654,666.12,664.93,0.738]
[1746847014786,0.24325261,666.11,664.93,0.738]
[1746847014981,0.24325261,666.1,664.93,0.738]
[1746847015288,0.24325261,666.09,664.93,0.738]
[1746847015685,0.24325261,666.08,664.93,0.738]
[1746847015981,0.24325261,666.07,664.93,0.738]
[1746847016287,0.24325261,666.06,664.93,0.738]
[1746847016685,0.24325261,666.05,664.93,0.738]
[1746847017085,0.24325261,666.04,664.93,0.738]
[1746847017290,1.89476654,666.05,664.93,0.738]
[1746847017587,0.24322843,666.04,664.93,0.738]
[1746847017886,0.24322843,666.03,664.93,0.738]
[1746847018080,0.50474198,666.03,664.93,0.738]
[1746847018283,0.24322843,666.02,664.93,0.738]
[1746847018586,0.24322843,666.01,664.93,0.738]
[1746847018893,0.24322843,666.0,664.93,0.738]
[1746847019387,0.24322843,665.99,664.93,0.738]
[1746847019687,0.24322843,665.98,664.93,0.738]
[1746847019988,0.24322843,665.97,664.93,0.738]
[1746847020489,0.24322843,666.02,664.93,0.738]
[1746847020985,0.26151551,666.01,664.93,0.738]
[1746847021386,0.50474394,666.01,664.93,0.738]
[1746847021584,0.24322843,666.0,664.93,0.738]
[1746847023898,0.26154598,665.99,664.93,0.738]
[1746847024290,0.24322843,665.98,664.93,0.738]
[1746847024688,0.24322843,665.97,664.93,0.738]
[1746847024991,0.24322843,665.96,664.93,0.738]
[1746847025392,0.24322843,665.95,664.93,0.738]
[1746847025991,0.24322843,665.94,664.93,0.738]
[1746847026393,0.24322843,665.93,664.93,0.738]
[1746847026792,0.24322843,665.92,664.93,0.738]
[1746847026989,0.50476163,665.92,664.93,0.738]
[1746847027193,0.24322843,665.91,664.93,0.738]
[1746847027395,0.24322843,665.9,664.93,0.738]
[1746847027694,0.24322843,665.89,664.93,0.738]
[1746847027995,0.24322843,665.88,664.93,0.738]
[1746847028295,0.24322843,665.87,664.93,0.738]
[1746847028592,0.24322843,665.86,664.93,0.738]
[1746847029000,0.24322843,665.85,664.93,0.738]
[1746847029299,0.24322843,665.84,664.93,0.738]
[1746847029702,0.24322843,665.83,664.93,0.738]
[1746847030001,0.24322843,665.82,664.93,0.738]
[1746847030395,0.24322843,665.81,664.93,0.738]
[1746847030600,0.24322843,665.8,664.93,0.738]
[1746847030801,0.50481471,665.8,664.93,0.738]
[1746847031002,0.24322843,665.79,664.93,0.738]
[1746847031201,0.24322843,665.78,664.93,0.738]
[1746847031602,0.24322843,665.77,664.93,0.738]
[1746847031998,0.24322843,665.76,664.93,0.738]
[1746847032303,0.24322843,665.75,664.93,0.738]
[1746847032498,0.24322843,665.74,664.93,0.738]
[1746847032902,0.30019662,666.23,664.93,0.738]
[1746847032903,0.24322843,665.73,664.93,0.738]
[1746847033197,0.24322843,665.72,664.93,0.738]
[1746847033603,0.24322843,665.71,664.93,0.738]
[1746847033902,0.50480783,665.71,664.93,0.738]
[1746847034103,0.24322843,665.7,664.93,0.738]
[1746847034503,0.24322843,665.69,664.93,0.738]
[1746847034903,0.24322843,665.68,664.93,0.738]
[1746847035305,0.24322843,665.7,664.93,0.738]
[1746847036105,0.2615794,665.69,664.93,0.738]
[1746847036605,0.24322843,665.68,664.93,0.738]
[1746847037606,0.2615794,665.69,664.93,0.738]
[1746847038007,0.24303221,665.68,664.93,0.738]
[1746847039407,0.2615794,665.69,664.93,0.738]
[1746847039810,0.24303098,665.68,664.93,0.738]
[1746847041808,0.24303098,666.22,664.93,0.738]
[1746847042204,0.24303098,666.21,664.93,0.738]
[1746847042709,0.24303098,666.2,664.93,0.738]
[1746847042910,0.50458777,666.2,664.93,0.738]
[1746847043204,0.24303098,666.19,664.93,0.738]
[1746847043409,0.24303098,666.18,664.93,0.738]
[1746847043909,0.24303098,666.17,664.93,0.738]
[1746847044312,0.24303098,666.16,664.93,0.738]
[1746847045008,0.26155679,666.15,664.93,0.738]
[1746847045207,0.50458777,666.15,664.93,0.738]
[1746847045509,0.24303098,666.14,664.93,0.738]
[1746847045809,0.24303098,666.13,664.93,0.738]
[1746847046105,0.24303098,666.12,664.93,0.738]
[1746847046509,0.24303098,666.11,664.93,0.738]
[1746847047010,0.24303098,666.1,664.93,0.738]
[1746847047408,0.24303098,666.09,664.93,0.738]
[1746847047808,0.24303098,666.08,664.93,0.738]
[1746847048011,0.50458777,666.08,664.93,0.738]
[1746847048210,0.24303098,666.07,664.93,0.738]
[1746847048608,0.24303098,666.06,664.93,0.738]
[1746847048909,0.24303098,666.05,664.93,0.738]
[1746847049310,0.24303098,666.04,664.93,0.738]
[1746847049710,0.24303098,666.03,664.93,0.738]
[1746847050004,0.24303098,666.02,664.93,0.738]
[1746847050309,0.24303098,666.01,664.93,0.738]
[1746847050510,1.89476654,665.69,664.93,0.738]
[1746847050805,0.24303098,665.68,664.93,0.738]
[1746847051010,0.50459563,665.68,664.93,0.738]
[1746847052010,0.24303098,665.67,664.93,0.738]
[1746847053811,0.26156465,665.68,664.93,0.738]
[1746847054113,0.24314284,665.67,664.93,0.738]
[1746847056515,0.24314284,665.67,664.93,0.42]
[1746847057517,0.26156465,665.68,664.93,0.42]
[1746847057913,0.24298446,665.67,664.93,0.42]
[1746847058915,0.24298446,665.67,664.93,0.731]
[1746847059819,0.26165414,665.66,664.93,0.731]
[1746847060616,0.24298446,665.65,664.93,0.731]
[1746847063117,0.26165905,665.64,664.93,0.731]
[1746847063517,0.24298446,665.63,664.93,0.731]
[1746847064519,0.24298446,665.62,664.93,0.731]
[1746847064819,0.24298446,665.61,664.93,0.731]
[1746847065221,0.24298446,665.6,664.93,0.731]
[1746847065518,0.24298446,665.59,664.93,0.731]
[1746847065920,0.24298446,665.58,664.93,0.731]
[1746847066120,0.50464646,665.58,664.93,0.731]
[1746847066313,0.24298446,665.57,664.93,0.731]
[1746847066519,0.24298446,665.56,664.93,0.731]
[1746847066919,0.24298446,665.55,664.93,0.731]
[1746847067222,0.24298446,665.54,664.93,0.731]
[1746847067515,0.24298446,665.53,664.93,0.731]
[1746847068022,0.24298446,665.52,664.93,0.731]
[1746847068323,0.24298446,665.51,664.93,0.731]
[1746847068723,0.24298446,665.5,664.93,0.731]
[1746847069117,0.24298446,665.49,664.93,0.731]
[1746847069722,0.24298446,665.48,664.93,0.731]
[1746847070323,0.24298446,665.47,664.93,0.731]
[1746847070623,0.24298446,665.46,664.93,0.731]
[1746847071022,0.24298446,665.45,664.93,0.731]
[1746847071323,0.24298446,665.44,664.93,0.731]
[1746847071724,0.261662,665.58,664.93,0.731]
[1746847071725,0.24298446,665.57,664.93,0.731]
[1746847072024,0.26167873,665.43,664.93,0.731]
[1746847072220,0.24298446,665.56,664.93,0.731]
[1746847072527,0.24298446,665.55,664.93,0.731]
[1746847073023,0.50466319,665.54,664.93,0.731]
[1746847073425,0.24298446,665.53,664.93,0.731]
[1746847073726,0.24298446,665.52,664.93,0.731]
[1746847074025,0.24298446,665.51,664.93,0.731]
[1746847074321,0.24298446,665.5,664.93,0.731]
[1746847074827,0.24298446,665.49,664.93,0.731]
[1746847075025,0.50466319,665.49,664.93,0.731]
[1746847075227,0.26167873,665.49,664.93,0.731]
[1746847075526,0.24298446,665.48,664.93,0.731]
[1746847080925,0.26167086,665.47,664.93,0.42]
[1746847082027,0.24298446,665.46,664.93,0.42]
[1746847082833,0.24298446,665.46,664.0,0.26167086]
[1746847083032,0.24298446,665.46,664.01,0.59241175]
[1746847083233,0.24298446,665.46,664.02,0.59241175]
[1746847083433,0.24298446,665.46,664.03,0.59241175]
[1746847083634,0.24298446,665.46,664.04,0.59241175]
[1746847083931,0.26175943,665.45,664.05,0.59241175]
[1746847084134,0.26175943,665.45,664.06,0.59241175]
[1746847084329,0.26175943,665.45,664.07,0.59241175]
[1746847084534,0.26175943,665.45,664.08,0.59241175]
[1746847084729,0.24298446,665.44,664.09,0.59241175]
[1746847084931,0.24298446,665.44,664.06,0.475]
[1746847085132,0.24298446,665.44,664.07,0.59254592]
[1746847085332,0.24298446,665.44,664.08,0.59254592]
[1746847085530,0.24298446,665.44,664.09,0.59254592]
[1746847085733,0.24298446,665.44,664.06,0.475]
[1746847085933,0.24298446,665.44,664.07,0.59260829]
[1746847086130,0.24298446,665.44,664.08,0.59260829]
[1746847086436,0.24298446,665.44,664.09,0.59260829]
[1746847086634,0.24298446,665.44,664.1,0.59260829]
[1746847086836,0.24298446,665.44,664.06,0.475]
[1746847087136,0.26175451,665.43,664.07,0.59267861]
[1746847087330,0.26175451,665.43,664.08,0.59267861]
[1746847087530,0.24298446,665.42,664.09,0.59267861]
[1746847087730,0.24298446,665.42,664.1,0.59267861]
[1746847088033,0.24298446,665.42,664.06,0.475]
[1746847088232,0.54354651,665.42,664.07,0.5927166]
[1746847088430,0.54354651,665.42,664.08,0.5927166]
[1746847088635,0.54354651,665.42,664.09,0.5927166]
[1746847088831,0.24298446,665.41,664.1,0.5927166]
[1746847089034,0.24298446,665.41,664.06,0.475]
[1746847089236,0.24298446,665.41,664.07,0.59274968]
[1746847089535,0.24298446,665.41,664.08,0.59274968]
[1746847089733,0.24298446,665.41,664.09,0.59274968]
[1746847089935,0.24298446,665.41,664.1,0.59274968]
[1746847090133,0.24298446,665.41,664.06,0.475]
[1746847090333,0.24298446,665.41,664.07,1.54978904]
[1746847090537,0.24298446,665.41,664.08,0.59279007]
[1746847090737,0.24298446,665.41,664.09,0.59279007]
[1746847090937,0.24298446,665.41,664.1,0.59279007]
[1746847091134,0.26179291,665.4,664.11,0.59283244]
[1746847091333,0.26179291,665.4,664.06,0.475]
[1746847091334,0.24298446,665.39,664.12,0.59283244]
[1746847091537,0.24298446,665.39,664.13,0.59283244]
[1746847091734,0.24298446,665.39,664.14,0.59283244]
[1746847091935,0.24298446,665.39,664.15,0.59283244]
[1746847092136,0.24298446,665.39,664.16,0.59283244]
[1746847092333,0.24298446,665.39,664.17,0.59283244]
[1746847092538,0.24298446,665.39,664.18,0.59283244]
[1746847092739,0.24298446,665.39,664.06,0.475]
[1746847093038,0.26178306,665.38,664.07,1.55013509]
[1746847093235,0.26178306,665.38,664.08,0.59293451]
[1746847093433,0.24298446,665.37,664.09,0.59293451]
[1746847093736,0.24298446,665.37,664.1,0.59293451]
[1746847093931,0.24298446,665.37,664.11,0.59293451]
[1746847094135,0.24298446,665.37,664.12,0.59293451]
[1746847094333,0.24298446,665.37,664.13,0.59293451]
[1746847094533,0.24298446,665.37,664.14,0.59293451]
[1746847094736,0.24298446,665.37,664.15,0.59293451]
[1746847094933,0.24298446,665.37,664.16,0.59293451]
[1746847095137,0.24298446,665.37,664.17,0.59293451]
[1746847095337,0.24298446,665.37,664.06,0.475]
[1746847095533,0.24298446,665.37,664.07,0.59307622]
[1746847095740,0.24298446,665.37,664.08,0.59307622]
[1746847096039,0.26179389,665.36,664.09,0.59307622]
[1746847096239,0.26179389,665.36,664.1,0.59307622]
[1746847096440,0.26179389,665.36,664.11,0.59313419]
[1746847096634,0.26179389,665.36,664.12,0.59313419]
[1746847096834,0.26179389,665.36,664.13,0.59313419]
[1746847097039,0.24298446,665.35,664.14,0.59313419]
[1746847097238,0.24298446,665.35,664.15,0.59313419]
[1746847097538,0.24298446,665.35,664.16,0.59313419]
[1746847097739,0.24298446,665.35,664.17,0.59313419]
[1746847097939,0.24298446,665.35,664.18,0.5932648]
[1746847098135,0.24298446,665.35,664.06,0.475]
[1746847098340,0.24298446,665.35,664.07,0.59326489]
[1746847098541,0.24298446,665.35,664.08,0.59326489]
[1746847098740,0.24298446,665.35,664.09,0.59326489]
[1746847098943,0.24298446,665.35,664.1,0.59326489]
[1746847099135,0.26179291,665.34,664.11,0.59326489]
[1746847099336,0.26179291,665.34,664.12,0.59326489]
[1746847099535,0.26179291,665.34,664.13,0.59326489]
[1746847099740,0.26179291,665.34,664.14,0.59326489]
[1746847100041,0.26179291,665.34,664.15,0.59326489]
[1746847100238,0.26179291,665.34,664.16,0.59326489]
[1746847100442,0.24298446,665.33,664.17,0.59326489]
[1746847100737,0.24298446,665.33,664.18,0.59326489]
[1746847100938,0.24298446,665.33,664.19,0.59326489]
[1746847101138,0.24298446,665.33,664.2,0.59354083]
[1746847101340,0.24298446,665.33,664.21,0.59354083]
[1746847101546,0.24298446,665.33,664.06,0.475]
[1746847101739,0.24298446,665.33,664.07,1.5519126]
[1746847101937,0.24298446,665.33,664.08,1.5519126]
[1746847102137,0.26179389,665.32,664.09,1.5519126]
[1746847102341,0.26179389,665.32,664.1,1.5519126]
[1746847102537,0.24272413,665.31,664.11,1.5520675]
[1746847102737,0.24272413,665.31,664.12,0.59362973]
[1746847102939,0.24272413,665.31,664.13,0.59362973]
[1746847103143,0.24272413,665.31,664.14,0.59362973]
[1746847103340,0.24272413,665.31,664.15,0.59362973]
[1746847103541,0.24272413,665.31,664.16,0.59362973]
[1746847103737,0.24272413,665.31,664.17,0.59362973]
[1746847103942,0.24272413,665.31,664.18,0.59362973]
[1746847104140,0.24272413,665.3,664.19,0.59362973]
[1746847104341,0.24272413,665.3,664.2,0.59362973]
[1746847104543,0.24272413,665.3,664.21,0.59362973]
[1746847104743,0.24272413,665.31,664.22,0.59362973]
[1746847104938,0.24272413,665.3,664.23,0.59362973]
[1746847105144,0.24272413,665.3,664.24,0.59362973]
[1746847105336,0.24272413,665.29,664.06,0.475]
[1746847105540,0.24272413,665.29,664.07,1.55284009]
[1746847105741,0.24272413,665.28,664.08,1.55284009]
[1746847105940,0.24272413,665.27,664.09,1.55284009]
[1746847106140,0.24272413,665.27,664.1,1.55284009]
[1746847106341,0.24272413,665.26,664.11,1.55284009]
[1746847106543,0.24272413,665.26,664.12,1.55284009]
[1746847106744,0.24272413,665.29,664.13,1.55284009]
[1746847107038,0.24272413,665.29,664.11,0.446]
[1746847107244,0.24272413,665.29,664.12,1.5535372]
[1746847107444,0.24272413,665.29,664.13,1.5535372]
[1746847107744,0.24272413,665.29,664.14,1.55381439]
[1746847107945,0.24272413,665.29,664.15,0.59425261]
[1746847108146,0.24272413,665.29,664.16,0.59425261]
[1746847108346,0.24272413,665.29,664.17,0.59425261]
[1746847108545,0.24272413,665.29,664.18,0.59425261]
[1746847108745,0.24272413,665.29,664.19,0.59425261]
[1746847108947,0.24272413,665.29,664.11,0.446]
[1746847108948,0.24272413,665.31,664.2,0.59455644]
[1746847109143,0.24272413,665.31,664.21,0.59455644]
[1746847109447,0.24272413,665.31,664.22,0.59455644]
[1746847109748,0.24272413,665.31,664.23,0.59455644]
[1746847109947,0.24272413,665.31,664.24,0.59455644]
[1746847110149,0.24272413,665.31,664.25,0.59455644]
[1746847110344,0.24272413,665.31,664.26,0.59455644]
[1746847110545,0.24272413,665.31,664.27,0.59455644]
[1746847110749,0.24272413,665.31,664.28,0.59455644]
[1746847110949,0.24272413,665.31,664.27,0.309]
[1746847110950,0.24272413,665.31,664.29,0.59455644]
[1746847111152,0.24272413,665.41,664.3,0.59501248]
[1746847111350,0.24272413,665.41,664.31,0.59501248]
[1746847111547,0.24272413,665.41,664.32,0.59524506]
[1746847111750,0.24272413,665.41,664.27,0.309]
[1746847111951,0.26176927,665.4,664.28,0.59524506]
[1746847112151,0.26176927,665.4,664.29,0.59524506]
[1746847112348,0.26176927,665.4,664.3,0.59524506]
[1746847112549,0.24272413,665.39,664.31,0.59551903]
[1746847112749,0.24272413,665.39,664.32,0.59551903]
[1746847112954,0.24272413,665.39,664.33,0.59551903]
[1746847113156,0.24272413,665.39,664.34,0.59551903]
[1746847113355,0.24272413,665.39,664.27,0.309]
[1746847113554,0.24272413,665.39,664.28,0.59578701]
[1746847113752,0.24272413,665.39,664.29,0.59578701]
[1746847113950,0.24272413,665.39,664.3,0.59578701]
[1746847114256,0.24272413,665.39,664.31,0.59578821]
[1746847114454,0.24272413,665.39,664.32,0.59578821]
[1746847114654,0.24272413,665.39,664.33,0.59578821]
[1746847114854,0.24272413,665.39,664.34,0.59578821]
[1746847115154,0.24272413,665.39,664.35,0.59578821]
[1746847115355,0.26176927,665.4,664.36,0.59578821]
[1746847115551,0.26176927,665.4,664.37,0.59578821]
[1746847115753,0.24288303,665.39,664.27,0.309]
[1746847116050,0.24288303,665.39,664.28,0.59602043]
[1746847116251,0.24288303,665.39,664.29,0.59602043]
[1746847116450,0.24288303,665.38,664.3,0.59602043]
[1746847116651,0.24288303,665.38,664.31,0.59602043]
[1746847116850,0.24288303,665.37,664.32,0.59602043]
[1746847117050,0.24288303,665.37,664.27,0.309]
[1746847117051,0.24288303,665.37,664.33,0.59602043]
[1746847117350,0.50465329,665.37,664.34,0.59602043]
[1746847117552,0.24288303,665.36,664.35,0.59602043]
[1746847117750,0.24288303,665.36,664.27,0.309]
[1746847117950,0.24288303,665.36,664.28,0.59629316]
[1746847118155,0.24288303,665.36,664.29,0.59629316]
[1746847118356,0.24288303,665.36,664.3,0.59629316]
[1746847118555,0.24288303,665.36,664.31,0.59629316]
[1746847118855,0.24288303,665.36,664.32,0.59629316]
[1746847119055,0.24288303,665.36,664.33,0.59629316]
[1746847119262,0.24288303,665.36,664.34,0.59629316]
[1746847119456,0.24288303,665.36,664.35,0.59629316]
[1746847119656,0.24288303,665.36,664.36,0.59629316]
[1746847119857,0.24288303,665.36,664.37,0.59629316]
[1746847120057,0.24288303,665.41,664.38,0.59629316]
[1746847120257,0.26176534,665.35,664.27,0.309]
[1746847120557,0.26176534,665.35,664.28,0.59664477]
[1746847120757,0.26176534,665.35,664.29,0.59664477]
[1746847120956,0.26176534,665.35,664.3,0.59664477]
[1746847121158,0.24288303,665.34,664.31,0.59664477]
[1746847121359,0.24288303,665.34,664.32,0.59664477]
[1746847121550,0.24288303,665.34,664.27,0.309]
[1746847121551,0.24288303,665.34,664.33,0.59664875]
[1746847121755,0.26176534,665.35,664.27,0.309]
[1746847122052,0.24283246,665.34,664.28,0.59664381]
[1746847122352,0.24283246,665.34,664.29,0.59664381]
[1746847122654,0.24283246,665.34,664.27,0.309]
[1746847122855,0.24283246,665.34,664.28,0.5966651]
[1746847123052,0.24283246,665.34,664.29,0.5966651]
[1746847123251,0.26179783,665.33,664.27,0.309]
[1746847123455,0.26179783,665.33,664.28,0.5966686]
[1746847123658,0.26179783,665.33,664.27,0.309]
[1746847123850,0.24283246,665.32,664.28,0.5966219]
[1746847124051,0.24283246,665.32,664.27,0.309]
[1746847124255,0.24283246,665.32,664.28,0.5966225]
[1746847124453,0.24283246,665.32,664.27,0.309]
[1746847124656,0.24283246,665.32,664.28,0.59704264]
[1746847124860,0.24283246,665.32,664.27,0.309]
[1746847125058,0.24283246,665.32,664.28,0.59704274]
[1746847125361,0.24283246,665.32,664.27,0.309]
[1746847125554,0.24283246,665.32,664.28,0.59695929]
[1746847125754,0.24283246,665.32,664.27,0.309]
[1746847125953,0.26179783,665.31,664.28,0.59695833]
[1746847126257,0.26179783,665.31,664.27,0.309]
[1746847126557,0.26179783,665.31,664.28,0.59692432]
[1746847126860,0.24283246,665.3,664.27,0.309]
[1746847127158,0.24283246,665.3,664.28,0.59691925]
[1746847127361,0.24283246,665.3,664.27,0.309]
[1746847127559,0.24283246,665.3,664.28,0.59688884]
[1746847127858,0.24283246,665.3,664.27,0.309]
[1746847129368,0.26191211,665.29,664.28,1.56222091]
[1746847129661,0.26191211,665.29,664.29,1.56194065]
[1746847129662,0.24283246,665.28,664.29,1.56194065]
[1746847129860,0.24283246,665.28,664.3,1.56194065]
[1746847130055,0.24283246,665.28,664.31,1.56194065]
[1746847130259,0.24283246,665.28,664.32,1.56180375]
[1746847130555,0.24283246,665.28,664.33,1.56180375]
[1746847130754,0.24283246,665.28,664.34,1.56180375]
[1746847130955,0.24283246,665.28,664.35,1.56180375]
[1746847131157,0.24283246,665.28,664.36,1.56180375]
[1746847131357,0.24283246,665.28,664.37,1.56180375]
[1746847131562,0.24283246,665.28,664.38,1.56180375]
[1746847131763,0.24283246,665.28,664.39,0.59661005]
[1746847132064,0.26174565,665.27,664.37,0.405]
[1746847132362,0.26174565,665.27,664.38,1.5608251]
[1746847132556,0.24283246,665.26,664.39,0.59623965]
[1746847132758,0.24283246,665.41,664.4,0.59623965]
[1746847132959,0.24283246,665.41,664.41,0.59623965]
[1746847133161,0.26174466,665.25,664.42,0.59623965]
[1746847133463,0.24283246,665.41,664.43,0.59623965]
[1746847133658,0.50457417,665.24,664.44,0.59623965]
[1746847133863,0.50457417,665.24,664.45,0.59601888]
[1746847134066,0.24283246,665.23,664.46,0.59601888]
[1746847134263,0.50457614,665.23,664.4,0.455]
[1746847134464,0.26174368,665.23,664.4,0.455]
[1746847134763,0.24283246,665.41,664.4,0.455]
[1746847134964,0.30057108,665.4,664.4,0.455]
[1746847135166,0.26177223,665.22,664.4,0.455]
[1746847135462,0.30057108,665.4,664.4,0.455]
[1746847135665,0.24283246,665.21,664.4,0.455]
[1746847135964,0.24283246,665.39,664.4,0.455]
[1746847136165,0.2617742,665.2,664.4,0.455]
[1746847136566,0.24283246,665.39,664.4,0.455]
[1746847136966,0.54340806,665.39,664.4,0.455]
[1746847137267,0.24283246,665.38,664.4,0.455]
[1746847137567,0.24283246,665.38,664.41,1.55975075]
[1746847137766,0.24283246,665.38,664.42,1.55975075]
[1746847137963,0.26171612,665.37,664.43,1.55975075]
[1746847138167,0.26171612,665.37,664.44,1.55975075]
[1746847138368,0.26171612,665.37,664.45,1.55975075]
[1746847138563,0.24283246,665.36,664.46,0.59585004]
[1746847138768,0.24283246,665.36,664.47,1.55954493]
[1746847138968,0.24283246,665.36,664.48,1.55954493]
[1746847139169,0.24283246,665.36,664.49,0.59585004]
[1746847139470,0.24283246,665.36,664.5,0.59540625]
[1746847139662,0.24283246,665.36,664.51,0.59540625]
[1746847139864,0.24283246,665.36,664.52,0.59540625]
[1746847140169,0.24283246,665.36,664.41,0.30101894]
[1746847141171,0.24283246,665.38,664.41,0.30101894]
[1746847141471,0.26177026,665.35,664.41,0.30101894]
[1746847141864,0.24283246,665.34,664.41,0.30101894]
[1746847144070,0.3005756,665.39,664.41,0.30101894]
[1746847144071,0.24283246,665.38,664.41,0.30101894]
[1746847144272,0.26175451,665.33,664.41,0.30101894]
[1746847145172,0.24283246,665.32,664.41,0.30101894]
[1746847147074,0.26176435,665.31,664.41,0.30101894]
[1746847147474,0.24283246,665.3,664.41,0.30101894]
[1746847148376,0.24283246,665.3,664.42,0.313]
[1746847150077,0.26177715,665.29,664.42,0.313]
[1746847150778,0.24283246,665.28,664.42,0.313]
[1746847153083,0.26177715,665.27,664.42,0.313]
[1746847153481,0.24283246,665.26,664.42,0.313]
[1746847153677,0.30064337,665.24,664.42,0.313]
[1746847153883,0.24283246,665.23,664.42,0.313]
[1746847154182,0.30065693,665.21,664.42,0.313]
[1746847154581,0.24283246,665.2,664.42,0.313]
[1746847154783,0.30066597,665.19,664.42,0.313]
[1746847155177,0.54349843,665.19,664.42,0.313]
[1746847155582,0.24283246,665.18,664.42,0.313]
[1746847155783,0.30067501,665.17,664.42,0.313]
[1746847155982,0.24283246,665.16,664.42,0.313]
[1746847156177,0.30068405,665.15,664.42,0.313]
[1746847156386,0.24283246,665.14,664.42,0.313]
[1746847156585,0.30069309,665.13,664.42,0.313]
[1746847156777,0.24283246,665.12,664.42,0.313]
[1746847156979,0.30070213,665.11,664.42,0.313]
[1746847157184,0.24283246,665.1,664.42,0.313]
[1746847157385,0.30071118,665.09,664.42,0.313]
[1746847158087,0.24224456,665.08,664.42,0.313]
[1746847158587,0.30072022,665.07,664.42,0.313]
[1746847158986,0.50420004,665.06,664.42,0.313]
[1746847159184,0.30072926,665.05,664.42,0.313]
[1746847159489,0.24224456,665.04,664.42,0.313]
[1746847159688,0.30073831,665.03,664.42,0.313]
[1746847159888,0.54298287,665.03,664.42,0.313]
[1746847160285,0.24224456,665.02,664.42,0.313]
[1746847160488,0.30074735,665.01,664.42,0.313]
[1746847160787,0.54299191,665.01,664.42,0.313]
[1746847160989,0.24224456,665.0,664.42,0.313]
[1746847161189,0.3007564,664.99,664.42,0.313]
[1746847161485,0.24224456,664.98,664.42,0.313]
[1746847161686,0.30076544,664.97,664.42,0.313]
[1746847162490,0.24224456,664.96,664.42,0.313]
[1746847162691,0.30077449,664.95,664.42,0.313]
[1746847163492,0.24224456,664.94,664.42,0.313]
[1746847163684,0.5430281,664.93,664.42,0.313]
[1746847163991,0.30078806,664.92,664.42,0.313]
[1746847164191,0.54303262,664.92,664.42,0.313]
[1746847164492,0.24224456,664.91,664.42,0.313]
[1746847164792,0.30079711,664.9,664.42,0.313]
[1746847165291,0.54304167,664.9,664.42,0.313]
[1746847165592,0.24224456,664.89,664.42,0.313]
[1746847165793,0.30080616,664.88,664.42,0.313]
[1746847165995,0.54305072,664.88,664.42,0.313]
[1746847166395,0.24224456,664.87,664.42,0.313]
[1746847166597,0.3008152,664.86,664.42,0.313]
[1746847166798,0.54305976,664.86,664.42,0.313]
[1746847167296,0.24224456,664.85,664.42,0.313]